fUSD/lending_fUSD_20250511
["ID","MTS","AMOUNT","RATE_DAILY","PERIOD"]
[360686738,1746929440585,-400.0,0.00019885,2]
[360686739,1746929440595,-400.0,0.00019885,2]
[360686740,1746929440604,-400.0,0.00019885,2]
[360686741,1746929440614,-400.0,0.00019885,2]
[360686742,1746929440623,-400.0,0.00019885,2]
[360686743,1746929440633,-404.17044289,0.00019885,2]
[360686744,1746929440643,-535.12045187,0.00019885,2]
[360686745,1746929440652,-400.0,0.00019885,2]
[360686746,1746929440663,-400.0,0.00019885,2]
[360686747,1746929440674,-400.0,0.00019885,2]
[360686748,1746929440683,-458.8532771,0.00019885,2]
[360686749,1746929440693,-400.0,0.00019885,2]
[360686750,1746929440703,-400.0,0.00019885,2]
[360686751,1746929440712,-400.0,0.00019885,2]
[360686752,1746929440722,-400.0,0.00019885,2]
[360686753,1746929440731,-400.0,0.00019885,2]
[360686754,1746929440740,-400.0,0.00019885,2]
[360686755,1746929440749,-400.0,0.00019885,2]
[360686756,1746929440758,-455.54,0.00019885,2]
[360686757,1746929440769,-400.0,0.00019885,2]
[360686758,1746929440778,-400.0,0.00019885,2]
[360686759,1746929440788,-400.0,0.00019885,2]
[360686760,1746929440798,-400.0,0.00019885,2]
[360686761,1746929440808,-830.57,0.00019885,2]
[360686762,1746929440817,-400.0,0.00019885,2]
[360686763,1746929440827,-543.37947874,0.00019885,2]
[360686764,1746929440837,-400.0,0.00019885,2]
[360686765,1746929440846,-400.0,0.00019885,2]
[360686766,1746929440855,-400.0,0.00019885,2]
[360686767,1746929440865,-401.83117151,0.00019885,2]
[360686768,1746929440875,-400.0,0.00019885,2]
[360686769,1746929440885,-517.94409558,0.00019885,2]
[360686770,1746929440894,-400.0,0.00019885,2]
[360686771,1746929440904,-400.0,0.00019885,2]
[360686772,1746929440913,-451.9129048,0.00019885,2]
[360686773,1746929440924,-400.0,0.00019885,2]
[360686774,1746929440934,-515.92739039,0.00019885,2]
[360686775,1746929440944,-400.0,0.00019885,2]
[360686776,1746929440955,-400.0,0.00019885,2]
[360686777,1746929440965,-403.62532257,0.00019885,2]
[360686778,1746929440974,-503.33834476,0.00019885,2]
[360686779,1746929440983,-400.0,0.00019885,2]
[360686780,1746929440994,-400.0,0.00019885,2]
[360686781,1746929441003,-400.0,0.00019885,2]
[360686782,1746929441013,-515.2051545,0.00019885,2]
[360686783,1746929441022,-453.78077413,0.00019885,2]
[360686784,1746929441032,-592.98,0.00019885,2]
[360686785,1746929441042,-503.39611728,0.00019885,2]
[360686786,1746929441051,-400.0,0.00019885,2]
[360686787,1746929441062,-400.0,0.00019885,2]
[360686788,1746929441072,-400.0,0.00019885,2]
[360686789,1746929441082,-176.39002574,0.00019885,2]
[360686790,1746929441092,-501.40781688,0.00019885,2]
[360686791,1746929441101,-186.183891,0.00019885,2]
[360686792,1746929441111,-655.17,0.00019885,2]
[360686793,1746929441120,-400.0,0.00019885,2]
[360686794,1746929441129,-400.0,0.00019885,2]
[360686795,1746929441139,-400.0,0.00019885,2]
[360686796,1746929441148,-2862.314891,0.00019885,2]
[360686797,1746929441158,-400.0,0.00019885,2]
[360686798,1746929441168,-436.82,0.00019885,2]
[360686799,1746929441179,-400.0,0.00019885,2]
[360686800,1746929441188,-400.0,0.00019885,2]
[360686801,1746929441198,-553.01,0.00019885,2]
[360686802,1746929441207,-400.0,0.00019885,2]
[360686803,1746929441216,-3892.56464104,0.00019885,2]
[360686804,1746929441226,-500.0,0.00019886,2]
[360686805,1746929441236,-500.0,0.00019886,2]
[360686806,1746929441245,-500.0,0.00019886,2]
[360686807,1746929441256,-500.0,0.00019886,2]
[360686808,1746929441266,-500.0,0.00019886,2]
[360686809,1746929441277,-500.0,0.00019886,2]
[360686810,1746929441287,-500.0,0.00019886,2]
[360686811,1746929441296,-500.0,0.00019886,2]
[360686812,1746929441306,-500.0,0.00019886,2]
[360686813,1746929441316,-500.0,0.00019886,2]
[360686814,1746929441326,-500.0,0.00019886,2]
[360686815,1746929441335,-200.0,0.00019886,2]
[360686816,1746929441345,-500.0,0.00019886,2]
[360686817,1746929441355,-500.0,0.00019886,2]
[360686818,1746929441364,-500.0,0.00019886,2]
[360686819,1746929441373,-500.0,0.00019886,2]
[360686820,1746929441382,-500.0,0.00019886,2]
[360686821,1746929441392,-500.0,0.00019886,2]
[360686822,1746929441401,-500.0,0.00019886,2]
[360686823,1746929441411,-269.78118042,0.00019886,2]
[360686824,1746929441425,-500.0,0.00019886,2]
[360686825,1746929441435,-500.0,0.00019886,2]
[360686826,1746929441445,-500.0,0.00019886,2]
[360686827,1746929441455,-500.0,0.00019886,2]
[360686828,1746929441465,-500.0,0.00019886,2]
[360686829,1746929441475,-500.0,0.00019886,2]
[360686830,1746929441488,-500.0,0.00019886,2]
[360686831,1746929441498,-500.0,0.00019886,2]
[360686832,1746929441508,-500.0,0.00019886,2]
[360686833,1746929441518,-500.0,0.00019886,2]
[360686834,1746929441527,-500.0,0.00019886,2]
[360686835,1746929441538,-500.0,0.00019886,2]
[360686836,1746929441547,-500.0,0.00019886,2]
[360686837,1746929441558,-500.0,0.00019886,2]
[360686838,1746929441568,-500.0,0.00019886,2]
[360686839,1746929441578,-500.0,0.00019886,2]
[360686840,1746929441588,-500.0,0.00019886,2]
[360686841,1746929441598,-500.0,0.00019886,2]
[360686842,1746929441607,-469.62691146,0.00019886,2]
[360686843,1746929441617,-500.0,0.00019886,2]
[360686844,1746929441627,-500.0,0.00019886,2]
[360686845,1746929441636,-500.0,0.00019886,2]
[360686846,1746929441645,-500.0,0.00019886,2]
[360686847,1746929441654,-500.0,0.00019886,2]
[360686848,1746929441663,-500.0,0.00019886,2]
[360686849,1746929441674,-500.0,0.00019886,2]
[360686850,1746929441683,-500.0,0.00019886,2]
[360686851,1746929441692,-500.0,0.00019886,2]
[360686852,1746929441702,-500.0,0.00019886,2]
[360686853,1746929441711,-500.0,0.00019886,2]
[360686854,1746929441720,-500.0,0.00019886,2]
[360686855,1746929441730,-765.30657807,0.00019886,2]
[360686856,1746929441740,-765.30657807,0.00019886,2]
[360686857,1746929441749,-765.30657807,0.00019886,2]
[360686858,1746929441759,-765.30657807,0.00019886,2]
[360686859,1746929441768,-765.30657807,0.00019886,2]
[360686860,1746929441964,-765.30657807,0.00019886,2]
[360686861,1746929441974,-765.30657807,0.00019886,2]
[360686862,1746929441983,-765.30657807,0.00019886,2]
[360686863,1746929441993,-765.30657807,0.00019886,2]
[360686864,1746929442002,-765.30657807,0.00019886,2]
[360686865,1746929442011,-765.30657807,0.00019886,2]
[360686866,1746929442021,-765.30657807,0.00019886,2]
[360686867,1746929442030,-765.30657807,0.00019886,2]
[360686868,1746929442039,-765.30657807,0.00019886,2]
[360686869,1746929442049,-765.30657807,0.00019886,2]
[360686870,1746929442058,-765.30657807,0.00019886,2]
[360686871,1746929442067,-765.30657807,0.00019886,2]
[360686872,1746929442076,-765.30657807,0.00019886,2]
[360686873,1746929442087,-765.30657807,0.00019886,2]
[360686874,1746929442096,-765.30657807,0.00019886,2]
[360686875,1746929442106,-765.30657807,0.00019886,2]
[360686876,1746929442116,-765.30657807,0.00019886,2]
[360686877,1746929442125,-765.30657807,0.00019886,2]
[360686878,1746929442134,-765.30657807,0.00019886,2]
[360686879,1746929442143,-765.30657807,0.00019886,2]
[360686880,1746929442153,-765.30657807,0.00019886,2]
[360686881,1746929442162,-765.30657807,0.00019886,2]
[360686882,1746929442171,-765.30657807,0.00019886,2]
[360686883,1746929442182,-765.30657807,0.00019886,2]
[360686884,1746929442191,-765.30657807,0.00019886,2]
[360686885,1746929442200,-765.30657807,0.00019886,2]
[360686886,1746929442210,-765.30657807,0.00019886,2]
[360686887,1746929442219,-765.30657807,0.00019886,2]
[360686888,1746929442228,-765.30657807,0.00019886,2]
[360686889,1746929442237,-765.30657807,0.00019886,2]
[360686890,1746929442246,-765.30657807,0.00019886,2]
[360686891,1746929442255,-765.30657807,0.00019886,2]
[360686892,1746929442265,-765.30657807,0.00019886,2]
[360686893,1746929442274,-765.30657807,0.00019886,2]
[360686894,1746929442283,-765.30657807,0.00019886,2]
[360686895,1746929442291,-765.30657807,0.00019886,2]
[360686896,1746929442300,-765.30657807,0.00019886,2]
[360686897,1746929442310,-729.29215088,0.00019886,2]
[360686898,1746929442319,-729.29215088,0.00019886,2]
[360686899,1746929442329,-729.29215088,0.00019886,2]
[360686900,1746929442338,-729.29215088,0.00019886,2]
[360686901,1746929442347,-729.29215088,0.00019886,2]
[360686902,1746929442356,-729.29215088,0.00019886,2]
[360686903,1746929442365,-729.29215088,0.00019886,2]
[360686904,1746929442375,-729.29215088,0.00019886,2]
[360686905,1746929442383,-729.29215088,0.00019886,2]
[360686906,1746929442392,-729.29215088,0.00019886,2]
[360686907,1746929442401,-729.29215088,0.00019886,2]
[360686908,1746929442411,-729.29215088,0.00019886,2]
[360686909,1746929442420,-729.29215088,0.00019886,2]
[360686910,1746929442432,-729.29215088,0.00019886,2]
[360686911,1746929442442,-729.29215088,0.00019886,2]
[360686912,1746929442452,-729.29215088,0.00019886,2]
[360686913,1746929442462,-729.29215086,0.00019886,2]
[360686914,1746929442472,-206.95184098,0.00019886,2]
[360686915,1746929442481,-400.0,0.00019886,2]
[360686916,1746929442492,-400.0,0.00019886,2]
[360686917,1746929442502,-400.0,0.00019886,2]
[360686918,1746929442511,-400.0,0.00019886,2]
[360686919,1746929442521,-400.0,0.00019886,2]
[360686920,1746929442531,-400.0,0.00019886,2]
[360686921,1746929442541,-530.59848353,0.00019886,2]
[360686922,1746929442551,-400.0,0.00019886,2]
[360686923,1746929442560,-400.0,0.00019886,2]
[360686924,1746929442571,-400.0,0.00019886,2]
[360686925,1746929442581,-400.0,0.00019886,2]
[360686926,1746929442591,-400.0,0.00019886,2]
[360686927,1746929442601,-359.83050965,0.00019886,2]
[360686928,1746929442610,-400.0,0.00019886,2]
[360686929,1746929442620,-400.0,0.00019886,2]
[360686930,1746929442630,-499.54,0.00019886,2]
[360686931,1746929442639,-400.0,0.00019886,2]
[360686932,1746929442648,-400.0,0.00019886,2]
[360686933,1746929442658,-269.80379834,0.00019886,2]
[360686934,1746929442667,-400.0,0.00019886,2]
[360686935,1746929442679,-930.29,0.00019886,2]
[360686936,1746929442688,-400.0,0.00019886,2]
[360686937,1746929442698,-459.74,0.00019886,2]
[360686938,1746929442708,-481.41,0.00019886,2]
[360686939,1746929442717,-400.0,0.00019886,2]
[360686940,1746929442727,-400.0,0.00019886,2]
[360686941,1746929442736,-469.57,0.00019886,2]
[360686942,1746929442745,-400.0,0.00019886,2]
[360686943,1746929442755,-199.2152245,0.00019886,2]
[360686944,1746929442764,-497.73,0.00019886,2]
[360686945,1746929442774,-400.0,0.00019886,2]
[360686946,1746929442783,-400.0,0.00019886,2]
[360686947,1746929442793,-542.69,0.00019886,2]
[360686948,1746929442802,-336.24768532,0.00019886,2]
[360686949,1746929442812,-269.66828556,0.00019887,2]
[360686950,1746929442821,-400.46532858,0.00019887,2]
[360686951,1746929442831,-513.44244413,0.00019887,2]
[360686952,1746929442841,-401.52396421,0.00019887,2]
[360686953,1746929442850,-400.26102847,0.00019887,2]
[360686954,1746929442859,-404.63930698,0.00019887,2]
[360686955,1746929442869,-504.40652299,0.00019887,2]
[360686956,1746929442880,-400.0,0.00019887,2]
[360686957,1746929442890,-473.80501073,0.00019887,2]
[360686958,1746929442900,-400.70752194,0.00019887,2]
[360686959,1746929442910,-402.38920822,0.00019887,2]
[360686960,1746929442919,-510.55816799,0.00019887,2]
[360686961,1746929442931,-501.81829406,0.00019887,2]
[360686962,1746929442941,-400.0,0.00019887,2]
[360686964,1746929442950,-386.6980963,0.00019887,2]
[360686965,1746929442960,-156.08790463,0.00019887,2]
[360686966,1746929442970,-400.0,0.00019887,2]
[360686967,1746929442980,-402.70396261,0.00019887,2]
[360686968,1746929442989,-401.78148475,0.00019887,2]
[360686969,1746929442998,-402.26670047,0.00019887,2]
[360686970,1746929443009,-400.62538518,0.00019887,2]
[360686972,1746929443018,-502.23250671,0.00019887,2]
[360686974,1746929443028,-401.16625263,0.00019887,2]
[360686976,1746929443037,-400.91298716,0.00019887,2]
[360686978,1746929443047,-400.0,0.00019887,2]
[360686980,1746929443057,-400.0,0.00019887,2]
[360686982,1746929443066,-473.78422308,0.00019887,2]
[360686984,1746929443075,-400.0,0.00019887,2]
[360686986,1746929443084,-400.0,0.00019887,2]
[360686988,1746929443094,-400.0,0.00019887,2]
[360686990,1746929443103,-400.0,0.00019887,2]
[360686992,1746929443111,-500.0,0.00019887,2]
[360686994,1746929443121,-400.0,0.00019887,2]
[360686996,1746929443130,-400.0,0.00019887,2]
[360686997,1746929443139,-400.0,0.00019887,2]
[360686999,1746929443149,-400.0,0.00019887,2]
[360687001,1746929443159,-258.36899778,0.00019887,2]
[360687003,1746929443168,-400.0,0.00019887,2]
[360687004,1746929443180,-400.0,0.00019887,2]
[360687005,1746929443189,-400.0,0.00019887,2]
[360687006,1746929443199,-400.0,0.00019887,2]
[360687007,1746929443209,-400.0,0.00019887,2]
[360687008,1746929443218,-200.61192901,0.00019887,2]
[360687009,1746929443227,-201.36487175,0.00019887,2]
[360687010,1746929443238,-500.0,0.00019887,2]
[360687011,1746929443247,-500.0,0.00019887,2]
[360687012,1746929443256,-500.0,0.00019887,2]
[360687013,1746929443266,-500.0,0.00019887,2]
[360687014,1746929443276,-500.0,0.00019887,2]
[360687015,1746929443285,-500.0,0.00019887,2]
[360687016,1746929443295,-500.0,0.00019887,2]
[360687017,1746929443304,-500.0,0.00019887,2]
[360687018,1746929443314,-330.32027976,0.00019887,2]
[360687019,1746929443323,-500.0,0.00019887,2]
[360687020,1746929443333,-500.0,0.00019887,2]
[360687021,1746929443342,-400.0,0.00019887,2]
[360687022,1746929443352,-600.0,0.00019887,2]
[360687023,1746929443362,-400.0,0.00019887,2]
[360687024,1746929443371,-400.0,0.00019887,2]
[360687025,1746929443380,-400.0,0.00019887,2]
[360687026,1746929443390,-400.0,0.00019887,2]
[360687027,1746929443399,-400.0,0.00019887,2]
[360687028,1746929443409,-400.0,0.00019887,2]
[360687029,1746929443418,-400.0,0.00019887,2]
[360687030,1746929443429,-400.0,0.00019887,2]
[360687031,1746929443439,-400.0,0.00019887,2]
[360687032,1746929443448,-400.0,0.00019887,2]
[360687033,1746929443458,-22278.8,0.00019887,2]
[360687034,1746929443468,-400.0,0.00019887,2]
[360687035,1746929443477,-400.0,0.00019887,2]
[360687036,1746929443488,-400.0,0.00019887,2]
[360687037,1746929443498,-544.37988473,0.00019887,2]
[360687038,1746929443508,-400.0,0.00019887,2]
[360687039,1746929443518,-830.57,0.00019887,2]
[360687040,1746929443528,-400.0,0.00019887,2]
[360687041,1746929443538,-510.14,0.00019887,2]
[360687042,1746929443548,-400.0,0.00019887,2]
[360687043,1746929443557,-400.0,0.00019887,2]
[360687045,1746929443569,-438.45241974,0.00019887,2]
[360687047,1746929443578,-400.0,0.00019887,2]
[360687049,1746929443588,-400.0,0.00019887,2]
[360687051,1746929443597,-464.54,0.00019887,2]
[360687053,1746929443606,-400.0,0.00019887,2]
[360687055,1746929443616,-400.0,0.00019887,2]
[360687057,1746929443626,-494.69,0.00019887,2]
[360687058,1746929443635,-400.0,0.00019887,2]
[360687059,1746929443644,-1677.61,0.00019887,2]
[360687060,1746929443653,-592.98,0.00019887,2]
[360687061,1746929443663,-400.69699632,0.00019887,2]
[360687062,1746929443672,-1969.27,0.00019887,2]
[360687063,1746929443684,-400.0,0.00019887,2]
[360687064,1746929443694,-400.0,0.00019887,2]
[360687065,1746929443703,-400.0,0.00019887,2]
[360687066,1746929443713,-930.04,0.00019887,2]
[360687067,1746929443722,-400.0,0.00019887,2]
[360687068,1746929443732,-400.0,0.00019887,2]
[360687069,1746929443741,-400.0,0.00019887,2]
[360687070,1746929443751,-3740.71,0.00019887,2]
[360687071,1746929443761,-553.01,0.00019887,2]
[360687072,1746929443771,-400.0,0.00019887,2]
[360687073,1746929443781,-1524.44508983,0.00019888,2]
[360687074,1746929443791,-346.4738371,0.00019888,2]
[360687075,1746929443801,-403.80599055,0.00019888,2]
[360687076,1746929443810,-401.7297543,0.00019888,2]
[360687077,1746929443822,-401.54879318,0.00019888,2]
[360687078,1746929443834,-164.4388448,0.00019888,2]
[360687079,1746929443849,-150.9093349,0.00019888,2]
[360687080,1746929443861,-405.15946343,0.00019888,2]
[360687081,1746929443874,-401.86745939,0.00019888,2]
[360687082,1746929443884,-400.0,0.00019888,2]
[360687083,1746929443896,-239.07472008,0.00019888,2]
[360687084,1746929443909,-500.95659808,0.00019888,2]
[360687085,1746929443922,-400.25577715,0.00019888,2]
[360687086,1746929443936,-340.38729258,0.00019888,2]
[360687087,1746929443949,-400.0,0.00019888,2]
[360687088,1746929443961,-400.0,0.00019888,2]
[360687089,1746929443974,-400.0,0.00019888,2]
[360687090,1746929443986,-400.0,0.00019888,2]
[360687091,1746929443997,-400.0,0.00019888,2]
[360687092,1746929444009,-400.0,0.00019888,2]
[360687093,1746929444019,-400.0,0.00019888,2]
[360687094,1746929444029,-400.0,0.00019888,2]
[360687095,1746929444042,-400.0,0.00019888,2]
[360687096,1746929444054,-400.0,0.00019888,2]
[360687097,1746929444067,-492.36,0.00019888,2]
[360687098,1746929444079,-400.0,0.00019888,2]
[360687099,1746929444092,-400.0,0.00019888,2]
[360687100,1746929444105,-400.0,0.00019888,2]
[360687101,1746929444118,-400.0,0.00019888,2]
[360687102,1746929444131,-400.0,0.00019888,2]
[360687103,1746929444143,-400.0,0.00019888,2]
[360687104,1746929444154,-400.0,0.00019888,2]
[360687105,1746929444167,-400.0,0.00019888,2]
[360687106,1746929444181,-402.10854471,0.00019888,2]
[360687107,1746929444193,-400.0,0.00019888,2]
[360687108,1746929444206,-400.0,0.00019888,2]
[360687109,1746929444217,-400.0,0.00019888,2]
[360687110,1746929444229,-400.0,0.00019888,2]
[360687111,1746929444241,-400.0,0.00019888,2]
[360687112,1746929444253,-480.26404852,0.00019888,2]
[360687113,1746929444266,-400.0,0.00019888,2]
[360687114,1746929444279,-400.0,0.00019888,2]
[360687115,1746929444291,-400.0,0.00019888,2]
[360687116,1746929444303,-400.0,0.00019888,2]
[360687117,1746929444315,-400.0,0.00019888,2]
[360687118,1746929444326,-400.0,0.00019888,2]
[360687119,1746929444337,-332.41495563,0.00019888,2]
[360687120,1746929444347,-400.0,0.00019888,2]
[360687121,1746929444358,-400.0,0.00019888,2]
[360687122,1746929444370,-400.0,0.00019888,2]
[360687123,1746929444385,-400.0,0.00019888,2]
[360687124,1746929444396,-161.42755495,0.00019888,2]
[360687125,1746929444407,-400.0,0.00019888,2]
[360687126,1746929444416,-400.0,0.00019888,2]
[360687127,1746929444427,-465.67234796,0.00019888,2]
[360687128,1746929444438,-400.0,0.00019888,2]
[360687129,1746929444450,-406.39173955,0.00019888,2]
[360687130,1746929444464,-417.18553176,0.00019888,2]
[360687131,1746929444476,-400.0,0.00019888,2]
[360687132,1746929444488,-400.0,0.00019888,2]
[360687133,1746929444500,-400.0,0.00019888,2]
[360687134,1746929444512,-400.0,0.00019888,2]
[360687135,1746929444523,-413.37253778,0.00019888,2]
[360687136,1746929444534,-419.70941544,0.00019888,2]
[360687137,1746929444546,-409.15726238,0.00019888,2]
[360687138,1746929444557,-400.0,0.00019888,2]
[360687139,1746929444569,-407.80946599,0.00019888,2]
[360687140,1746929444580,-400.0,0.00019888,2]
[360687141,1746929444591,-400.0,0.00019888,2]
[360687142,1746929444604,-425.75941426,0.00019888,2]
[360687143,1746929444615,-400.0,0.00019888,2]
[360687144,1746929444627,-544.36766219,0.00019888,2]
[360687145,1746929444639,-400.0,0.00019888,2]
[360687146,1746929444650,-400.0,0.00019888,2]
[360687147,1746929444662,-400.0,0.00019888,2]
[360687148,1746929444673,-400.0,0.00019888,2]
[360687149,1746929444685,-400.0,0.00019888,2]
[360687150,1746929444696,-400.0,0.00019888,2]
[360687151,1746929444707,-400.0,0.00019888,2]
[360687152,1746929444719,-400.0,0.00019888,2]
[360687153,1746929444732,-400.0,0.00019888,2]
[360687154,1746929444743,-400.0,0.00019888,2]
[360687155,1746929444754,-400.0,0.00019888,2]
[360687156,1746929444765,-400.0,0.00019888,2]
[360687157,1746929444777,-403.28156569,0.00019888,2]
[360687158,1746929444788,-413.01683892,0.00019888,2]
[360687159,1746929444800,-400.0,0.00019888,2]
[360687160,1746929444811,-403.90486062,0.00019888,2]
[360687161,1746929444824,-416.08198203,0.00019888,2]
[360687162,1746929444835,-400.0,0.00019888,2]
[360687163,1746929444847,-404.15866988,0.00019888,2]
[360687164,1746929444859,-400.0,0.00019888,2]
[360687165,1746929444870,-409.3090887,0.00019888,2]
[360687166,1746929444882,-400.0,0.00019888,2]
[360687167,1746929444893,-400.0,0.00019888,2]
[360687168,1746929444905,-408.04343269,0.00019888,2]
[360687169,1746929444915,-400.0,0.00019888,2]
[360687170,1746929444926,-451.35296568,0.00019888,2]
[360687171,1746929444937,-400.0,0.00019888,2]
[360687172,1746929444947,-401.6796779,0.00019888,2]
[360687173,1746929444958,-400.0,0.00019888,2]
[360687174,1746929444969,-406.58786232,0.00019888,2]
[360687175,1746929444980,-400.0,0.00019888,2]
[360687176,1746929444991,-400.0,0.00019888,2]
[360687177,1746929445002,-400.0,0.00019888,2]
[360687178,1746929445013,-413.74361649,0.00019888,2]
[360687179,1746929445024,-400.0,0.00019888,2]
[360687180,1746929445035,-400.0,0.00019888,2]
[360687181,1746929445045,-400.0,0.00019888,2]
[360687182,1746929445056,-432.91,0.00019888,2]
[360687183,1746929445066,-410.49136705,0.00019888,2]
[360687184,1746929445077,-400.0,0.00019888,2]
[360687185,1746929445088,-400.0,0.00019888,2]
[360687186,1746929445098,-427.08845178,0.00019888,2]
[360687187,1746929445109,-400.0,0.00019888,2]
[360687188,1746929445119,-400.0,0.00019888,2]
[360687189,1746929445130,-400.0,0.00019888,2]
[360687190,1746929445140,-400.0,0.00019888,2]
[360687191,1746929445150,-409.61933177,0.00019888,2]
[360687192,1746929445162,-400.0,0.00019888,2]
[360687193,1746929445172,-400.0,0.00019888,2]
[360687194,1746929445185,-479.82225667,0.00019888,2]
[360687195,1746929445196,-400.0,0.00019888,2]
[360687196,1746929445208,-400.0,0.00019888,2]
[360687197,1746929445219,-486.0,0.00019888,2]
[360687198,1746929445230,-400.0,0.00019888,2]
[360687199,1746929445240,-531.90424101,0.00019888,2]
[360687200,1746929445251,-400.0,0.00019888,2]
[360687201,1746929445262,-400.0,0.00019888,2]
[360687202,1746929445273,-400.0,0.00019888,2]
[360687203,1746929445284,-158.35727255,0.00019888,2]
[360687204,1746929445295,-414.63107883,0.00019888,2]
[360687205,1746929445306,-400.0,0.00019888,2]
[360687206,1746929445316,-400.0,0.00019888,2]
[360687207,1746929445327,-400.0,0.00019888,2]
[360687208,1746929445338,-429.04230192,0.00019888,2]
[360687209,1746929445348,-402.54708512,0.00019888,2]
[360687210,1746929445360,-236.99798334,0.00019888,2]
[360687211,1746929445370,-405.71931677,0.00019888,2]
[360687212,1746929445381,-400.0,0.00019888,2]
[360687213,1746929445392,-403.7076674,0.00019888,2]
[360687214,1746929445403,-400.0,0.00019888,2]
[360687215,1746929445414,-400.0,0.00019888,2]
[360687216,1746929445424,-400.0,0.00019888,2]
[360687217,1746929445437,-400.0,0.00019888,2]
[360687218,1746929445452,-400.0,0.00019888,2]
[360687219,1746929445464,-400.0,0.00019888,2]
[360687220,1746929445475,-400.0,0.00019888,2]
[360687221,1746929445489,-401.38802093,0.00019888,2]
[360687222,1746929445501,-400.0,0.00019888,2]
[360687223,1746929445513,-400.0,0.00019888,2]
[360687224,1746929445524,-402.98545202,0.00019888,2]
[360687225,1746929445536,-400.0,0.00019888,2]
[360687226,1746929445547,-506.67630636,0.00019888,2]
[360687227,1746929445558,-400.0,0.00019888,2]
[360687228,1746929445571,-400.0,0.00019888,2]
[360687229,1746929445582,-400.0,0.00019888,2]
[360687230,1746929445593,-400.0,0.00019888,2]
[360687231,1746929445604,-482.34787185,0.00019888,2]
[360687232,1746929445616,-400.0,0.00019888,2]
[360687233,1746929445627,-400.0,0.00019888,2]
[360687234,1746929445637,-400.0,0.00019888,2]
[360687235,1746929445648,-400.0,0.00019888,2]
[360687236,1746929445660,-400.0,0.00019888,2]
[360687237,1746929445671,-401.79607534,0.00019888,2]
[360687238,1746929445686,-400.0,0.00019888,2]
[360687239,1746929445697,-400.0,0.00019888,2]
[360687240,1746929445708,-400.0,0.00019888,2]
[360687241,1746929445719,-400.0,0.00019888,2]
[360687242,1746929445730,-400.0,0.00019888,2]
[360687243,1746929445740,-400.0,0.00019888,2]
[360687244,1746929445751,-401.53527318,0.00019888,2]
[360687245,1746929445763,-400.0,0.00019888,2]
[360687246,1746929445773,-400.0,0.00019888,2]
[360687247,1746929445784,-400.0,0.00019888,2]
[360687248,1746929445795,-400.0,0.00019888,2]
[360687249,1746929445805,-400.0,0.00019888,2]
[360687250,1746929445816,-400.0,0.00019888,2]
[360687251,1746929445827,-405.56400791,0.00019888,2]
[360687252,1746929445838,-400.0,0.00019888,2]
[360687253,1746929445849,-400.0,0.00019888,2]
[360687254,1746929445860,-233.76285851,0.00019888,2]
[360687255,1746929445870,-400.0,0.00019888,2]
[360687256,1746929445881,-400.0,0.00019888,2]
[360687257,1746929445891,-400.0,0.00019888,2]
[360687259,1746929445903,-400.0,0.00019888,2]
[360687261,1746929445913,-400.0,0.00019888,2]
[360687264,1746929445924,-400.0,0.00019888,2]
[360687266,1746929445936,-401.7846809,0.00019888,2]